bitfinex/quotes_BTCUSD_20251007
["timestamp","ask_amount","ask_price","bid_price","bid_amount"]
[1759821659677,0.01089815,123860.0,123850.0,0.22325571]
[1759821659894,0.01618815,123860.0,123850.0,0.18593845]
[1759821660102,0.26078284,123860.0,123850.0,0.02445279]
[1759821660305,0.26078284,123860.0,123850.0,0.23104]
[1759821660726,0.7640324,123860.0,123850.0,0.002]
[1759821660947,0.7640324,123860.0,123850.0,0.15056]
[1759821661131,0.77155831,123860.0,123850.0,0.15056]
[1759821661339,0.34830555,123860.0,123850.0,0.002]
[1759821661545,0.77155831,123860.0,123850.0,0.23104]
[1759821661961,0.26830875,123860.0,123850.0,0.23104]
[1759821662642,0.26530875,123860.0,123850.0,0.23004]
[1759821662931,0.26714875,123860.0,123850.0,0.23318]
[1759821663139,0.25962284,123860.0,123850.0,0.43199348]
[1759821663488,0.25362284,123860.0,123850.0,0.43099348]
[1759821663892,0.26362284,123860.0,123850.0,0.43199348]
[1759821664282,0.24862284,123860.0,123850.0,0.42999348]
[1759821664504,0.24862284,123860.0,123850.0,0.43313348]
[1759821664699,0.26062284,123860.0,123850.0,0.43413348]
[1759821665112,0.26062284,123860.0,123850.0,0.43199348]
[1759821665314,0.25262284,123860.0,123850.0,0.16148566]
[1759821665515,0.25177284,123860.0,123850.0,0.39060566]
[1759821665854,0.25377284,123860.0,123850.0,0.39160566]
[1759821666050,0.25062284,123860.0,123850.0,0.39160566]
[1759821666250,0.08702021,123860.0,123850.0,0.39684566]
[1759821666456,0.08702021,123860.0,123850.0,0.46107205]
[1759821666863,0.25680284,123860.0,123850.0,0.23108]
[1759821667044,0.25680284,123860.0,123850.0,0.39256566]
[1759821667496,0.09002021,123860.0,123850.0,0.39780566]
[1759821667916,0.09002021,123860.0,123850.0,0.39470566]
[1759821669628,0.09002021,123860.0,123850.0,0.39780566]
[1759821669832,0.09002021,123860.0,123850.0,0.46212805]
[1759821670478,0.25149284,123860.0,123850.0,0.45902805]
[1759821670658,0.09002021,123860.0,123850.0,0.45902805]
[1759821671167,0.09218021,123860.0,123850.0,0.45902805]
[1759821671371,0.09218021,123860.0,123850.0,0.22780805]
[1759821671372,0.25680284,123860.0,123850.0,0.22780805]
[1759821671571,0.25680284,123860.0,123850.0,0.39252566]
[1759821671963,0.09218021,123860.0,123850.0,0.39466566]
[1759821672124,0.09002021,123860.0,123850.0,0.39466566]
[1759821673233,0.09002021,123860.0,123850.0,0.39776566]
[1759821673483,0.09002021,123860.0,123850.0,0.39466566]
[1759821673688,0.09002021,123860.0,123850.0,0.45898405]
[1759821673864,0.09002021,123860.0,123850.0,0.46208405]
[1759821676675,0.00689815,123860.0,123850.0,0.46208405]
[1759821678836,0.00905815,123860.0,123850.0,0.22994405]
[1759821679061,0.25680284,123860.0,123850.0,0.39240566]
[1759821679462,0.09533021,123860.0,123850.0,0.39240566]
[1759821679668,0.09002021,123860.0,123850.0,0.39454566]
[1759821681770,0.09002021,123860.0,123850.0,0.16562566]
[1759821682000,0.09002021,123860.0,123850.0,0.42752805]
[1759821682665,0.00689815,123860.0,123850.0,0.42752805]
[1759821682873,0.00689815,123860.0,123850.0,0.43062805]
[1759821686733,0.00689815,123860.0,123850.0,0.20174805]
[1759821686932,0.00689815,123860.0,123850.0,0.51140805]
[1759821688165,0.00689815,123860.0,123850.0,0.51450805]
[1759821693928,0.01214815,123860.0,123850.0,0.50926805]
[1759821694330,0.00891815,123860.0,123850.0,0.51130805]
[1759821694564,0.00689815,123860.0,123850.0,0.51130805]
[1759821695308,0.00689815,123860.0,123850.0,0.51451805]
[1759821695818,0.00689815,123860.0,123850.0,0.48149566]
[1759821698107,0.00689815,123860.0,123850.0,0.47828566]
[1759821698330,0.00689815,123860.0,123850.0,0.48132566]
[1759821701413,0.00689815,123860.0,123850.0,0.48018544]
[1759821702407,0.00689815,123860.0,123850.0,0.16438544]
[1759821702623,0.00689815,123860.0,123850.0,0.39322544]
[1759821702827,0.00689815,123860.0,123850.0,0.5100378]
[1759821703031,0.00689815,123860.0,123850.0,0.5130778]
[1759821704592,0.00689815,123860.0,123850.0,0.48018544]
[1759821704792,0.00689815,123860.0,123850.0,0.54188697]
[1759821705130,0.00689815,123860.0,123850.0,0.53884697]
[1759821705532,0.00689815,123860.0,123850.0,0.54188697]
[1759821706352,0.00689815,123860.0,123850.0,0.53884697]
[1759821707304,0.01205815,123860.0,123850.0,0.53680697]
[1759821707763,0.00886815,123860.0,123850.0,0.53878697]
[1759821707973,0.00689815,123860.0,123850.0,0.53878697]
[1759821708649,0.00689815,123860.0,123850.0,0.22602697]
[1759821708869,0.00689815,123860.0,123850.0,0.53878697]
[1759821709491,0.00689815,123860.0,123850.0,0.22602697]
[1759821709654,0.00886815,123860.0,123850.0,0.53680697]
[1759821709846,0.01205815,123860.0,123850.0,0.53680697]
[1759821710100,0.00689815,123860.0,123850.0,0.53878697]
[1759821711041,0.00886815,123860.0,123850.0,0.53878697]
[1759821711241,0.00689815,123860.0,123850.0,0.53878697]
[1759821711685,0.00689815,123860.0,123850.0,0.54182697]
[1759821712104,0.00689815,123860.0,123850.0,0.53878697]
[1759821713034,0.17353078,123860.0,123850.0,0.53680697]
[1759821713231,0.00886815,123860.0,123850.0,0.53878697]
[1759821714042,0.17034078,123860.0,123850.0,0.53878697]
[1759821714282,0.83975916,123860.0,123850.0,0.00085978]
[1759821714490,0.83975916,123860.0,123850.0,0.22969978]
[1759821714709,0.78399774,123860.0,123850.0,0.22969978]
[1759821715328,0.28088822,123860.0,123850.0,0.22969978]
[1759821715539,0.78399774,123860.0,123850.0,0.22969978]
[1759821716839,0.28088822,123860.0,123850.0,0.22969978]
[1759821717268,0.27769822,123860.0,123850.0,0.39316544]
[1759821719713,0.28088822,123860.0,123850.0,0.39118544]
[1759821719969,0.28088822,123860.0,123850.0,0.22969978]
[1759821722559,0.78399774,123860.0,123850.0,0.22969978]
[1759821723208,0.28088822,123860.0,123850.0,0.22969978]
[1759821723420,0.78399774,123860.0,123850.0,0.39118544]
[1759821723921,0.27769822,123860.0,123850.0,0.39323544]
[1759821724349,0.03113353,123860.0,123850.0,0.39323544]
[1759821724640,0.00689815,123860.0,123850.0,0.39629544]
[1759821724849,0.00899815,123860.0,123850.0,0.39323544]
[1759821725063,0.17363078,123860.0,123850.0,0.39118544]
[1759821726016,0.00689815,123860.0,123850.0,0.39323544]
[1759821726290,0.00899815,123860.0,123850.0,0.39323544]
[1759821727139,0.17047078,123860.0,123850.0,0.39323544]
[1759821729396,0.17363078,123860.0,123850.0,0.39118544]
[1759821730591,0.25675284,123860.0,123850.0,0.22969978]
[1759821730788,0.83985916,123860.0,123850.0,0.22969978]
[1759821730997,1.26297188,123860.0,123850.0,0.00085978]
[1759821731195,1.287207,123860.0,123850.0,0.22969978]
[1759821731623,1.287207,123860.0,123850.0,0.00085978]
[1759821733101,2.13031652,123860.0,123850.0,0.00085978]
[1759821733314,1.72984289,123860.0,123850.0,0.00085978]
[1759821733757,1.72229653,123860.0,123850.0,0.00085978]
[1759821733978,1.94913653,123860.0,123850.0,0.00085978]
[1759821734199,0.1614987,123840.0,123830.0,0.03809553]
[1759821734425,0.24672076,123840.0,123830.0,0.19960727]
[1759821734651,0.24672076,123840.0,123830.0,0.18222732]
[1759821734844,0.27411925,123840.0,123830.0,0.01264]
[1759821735508,0.27511925,123840.0,123830.0,0.01364]
[1759821735732,0.27511925,123840.0,123830.0,0.03088809]
[1759821735960,0.24562076,123840.0,123830.0,0.19750983]
[1759821736176,0.24662076,123840.0,123830.0,0.19950983]
[1759821736632,0.24872076,123840.0,123830.0,0.19644983]
[1759821736861,0.25188076,123840.0,123830.0,0.19644983]
[1759821737099,0.24662076,123840.0,123830.0,0.19644983]
[1759821737567,0.08512206,123840.0,123830.0,0.21554167]
[1759821737783,0.002,123840.0,123830.0,0.21554167]
[1759821739816,0.00259995,123840.0,123830.0,0.21554167]
[1759821740444,0.00259995,123840.0,123830.0,0.19950983]
[1759821742203,0.00259995,123840.0,123830.0,0.19644983]
[1759821742402,0.00259995,123840.0,123830.0,0.18380983]
[1759821742611,0.00469995,123840.0,123830.0,0.49656983]
[1759821742822,0.00785995,123840.0,123830.0,0.41059983]
[1759821743040,0.00785995,123840.0,123830.0,0.49451983]
[1759821743218,0.16935865,123840.0,123830.0,0.41059983]
[1759821743424,0.16935865,123840.0,123830.0,0.18175983]
[1759821743623,0.16935865,123840.0,123830.0,0.41059983]
[1759821745095,0.16935865,123840.0,123830.0,0.02024809]
[1759821745096,0.75559023,123840.0,123830.0,0.02024809]
[1759821745309,0.75559023,123840.0,123830.0,0.24908809]
[1759821746454,0.25248071,123840.0,123830.0,0.24908809]
[1759821747476,0.83558703,123840.0,123830.0,0.24908809]
[1759821747704,0.75559023,123840.0,123830.0,0.24908809]
[1759821748098,0.25248071,123840.0,123830.0,0.41059983]
[1759821748267,0.24932071,123840.0,123830.0,0.41264983]
[1759821748584,0.24722071,123840.0,123830.0,0.41264983]
[1759821749330,0.24932071,123840.0,123830.0,0.25113809]
[1759821749551,0.75559023,123840.0,123830.0,0.24908809]
[1759821749769,0.75559023,123840.0,123830.0,0.23184]
[1759821750177,0.83558703,123840.0,123830.0,0.23184]
[1759821750798,0.75559023,123840.0,123830.0,0.23184]
[1759821751264,0.77982843,123840.0,123830.0,0.23184]
[1759821751678,0.77982843,123840.0,123830.0,0.003]
[1759821751888,1.28293795,123840.0,123830.0,0.003]
[1759821752479,0.27671891,123840.0,123830.0,0.00512]
[1759821752684,0.27145891,123840.0,123830.0,0.00512]
[1759821753265,0.27145891,123840.0,123830.0,0.16663174]
[1759821753707,0.27145891,123840.0,123830.0,0.00512]
[1759821753904,0.27352891,123840.0,123830.0,0.00512]
[1759821754106,0.27665891,123840.0,123830.0,0.003]
[1759821754311,0.77976843,123840.0,123830.0,0.003]
[1759821755686,0.77976843,123840.0,123830.0,0.23184]
[1759821756519,1.28287795,123840.0,123830.0,0.003]
[1759821756978,0.77976843,123840.0,123830.0,0.003]
[1759821758075,1.00860843,123840.0,123830.0,0.003]
[1759821758287,1.51171795,123840.0,123830.0,0.003]
[1759821760326,1.50651795,123840.0,123830.0,0.003]
[1759821761666,1.00332768,123840.0,123830.0,0.003]
[1759821762303,1.5064372,123840.0,123830.0,0.003]
[1759821763218,0.27137816,123840.0,123830.0,0.003]
[1759821763418,0.50021816,123840.0,123830.0,0.003]
[1759821763638,1.8464372,123840.0,123830.0,0.003]
[1759821763844,1.926434,123840.0,123830.0,0.003]
[1759821764066,1.86151825,123840.0,123830.0,0.003]
[1759821765102,1.86256089,123840.0,123830.0,0.003]
[1759821765671,0.16153784,123810.0,123800.0,0.00053935]
[1759821765873,0.2446599,123810.0,123800.0,0.00945935]
[1759821766207,0.2467699,123810.0,123800.0,0.00945935]
[1759821766415,0.2498699,123810.0,123800.0,0.00945935]
[1759821766871,0.2518699,123810.0,123800.0,0.01060268]
[1759821767012,0.2528699,123810.0,123800.0,0.01260268]
[1759821768417,0.2476599,123810.0,123800.0,0.01458268]
[1759821768627,0.2476599,123810.0,123800.0,0.17937356]
[1759821768943,0.2476599,123810.0,123800.0,0.17613356]
[1759821769183,0.2497699,123810.0,123800.0,0.22119197]
[1759821769541,0.2528699,123810.0,123800.0,0.01458268]
[1759821770443,0.2497699,123810.0,123800.0,0.01458268]
[1759821771004,0.08612206,123810.0,123800.0,0.17613356]
[1759821771213,0.2476599,123810.0,123800.0,0.17613356]
[1759821771424,0.2476599,123810.0,123800.0,0.22410797]
[1759821773085,0.2476599,123810.0,123800.0,0.17613356]
[1759821773588,0.2476599,123810.0,123800.0,0.17937356]
[1759821774165,0.003,123810.0,123800.0,0.17937356]
[1759821777424,0.003,123810.0,123800.0,0.39605356]
[1759821777425,0.08612206,123810.0,123800.0,0.39605356]
[1759821777586,0.2476599,123810.0,123800.0,0.39605356]
[1759821778903,0.08612206,123810.0,123800.0,0.39605356]
[1759821779100,0.2476599,123810.0,123800.0,0.39605356]
[1759821780069,0.08612206,123810.0,123800.0,0.39605356]
[1759821780274,0.2476599,123810.0,123800.0,0.39605356]
[1759821781020,0.2476599,123810.0,123800.0,0.39929356]
[1759821781186,0.08612206,123810.0,123800.0,0.39929356]
[1759821781403,0.2476599,123810.0,123800.0,0.39929356]
[1759821782191,0.2527499,123810.0,123800.0,0.39407356]
[1759821783081,0.75638074,123810.0,123800.0,0.16523356]
[1759821783289,0.75638074,123810.0,123800.0,0.00368268]
[1759821783478,0.75638074,123810.0,123800.0,0.39407356]
[1759821783675,1.56884838,123810.0,123800.0,0.00368268]
[1759821783919,1.48885158,123810.0,123800.0,0.00368268]
[1759821784122,1.51309891,123810.0,123800.0,0.00368268]
[1759821784952,1.00946807,123810.0,123800.0,0.00368268]
[1759821785364,1.34946807,123810.0,123800.0,0.00368268]
[1759821786556,1.364544,123810.0,123800.0,0.00368268]
[1759821787019,1.36454885,123810.0,123800.0,0.00368268]
[1759821787216,1.34946807,123810.0,123800.0,0.00368268]
[1759821787423,1.36454822,123810.0,123800.0,0.00368268]
[1759821788253,1.34946807,123810.0,123800.0,0.00368268]
[1759821788480,1.364548,123810.0,123800.0,0.00368268]
[1759821788753,0.94091396,123810.0,123800.0,0.00368268]
[1759821788974,1.4445448,123810.0,123800.0,0.00368268]
[1759821789294,1.2157048,123810.0,123800.0,0.00368268]
[1759821789502,1.4445848,123810.0,123800.0,0.00368268]
[1759821789903,1.98590594,123810.0,123800.0,0.00368268]
[1759821790798,1.98390594,123810.0,123800.0,0.00268268]
[1759821791001,1.98290594,123810.0,123800.0,0.00068268]
[1759821791213,2.08186594,123810.0,123800.0,0.00168268]
[1759821791386,2.10686594,123810.0,123800.0,0.00468268]
[1759821791986,2.16633418,123810.0,123800.0,0.00468268]
[1759821792417,2.08237418,123810.0,123800.0,0.00468268]
[1759821792661,2.16633418,123810.0,123800.0,0.00468268]
[1759821796148,0.1616031,123760.0,123750.0,0.00544]
[1759821796283,0.1616031,123760.0,123750.0,0.00558594]
[1759821796284,0.24472516,123760.0,123750.0,0.00558594]
[1759821796503,0.24981516,123760.0,123750.0,0.00558594]
[1759821796905,0.24981516,123760.0,123750.0,0.00114668]
[1759821797352,0.8082748,123760.0,123750.0,0.01114668]
[1759821797524,0.82331365,123760.0,123750.0,0.01114668]
[1759821797745,1.00076485,123760.0,123750.0,0.01114668]
[1759821797948,0.99976485,123760.0,123750.0,0.00914668]
[1759821798191,0.99776485,123760.0,123750.0,0.00114668]
[1759821798363,1.00076485,123760.0,123750.0,0.00214668]
[1759821798568,0.99978485,123760.0,123750.0,0.00519668]
[1759821798771,1.00276485,123760.0,123750.0,0.00314668]
[1759821799328,1.02702349,123760.0,123750.0,0.00314668]
[1759821800340,0.52333897,123760.0,123750.0,0.00314668]
[1759821801899,0.29409897,123760.0,123750.0,0.00314668]
[1759821802127,0.28900897,123760.0,123750.0,0.00519668]
[1759821802330,0.51824897,123760.0,123750.0,0.00519668]
[1759821802570,0.52035897,123760.0,123750.0,0.00519668]
[1759821802978,0.49403033,123760.0,123750.0,0.16990284]
[1759821803526,0.49403033,123760.0,123750.0,0.00828668]
[1759821803727,0.26475033,123760.0,123750.0,0.16990284]
[1759821804623,0.26475033,123760.0,123750.0,0.00828668]
[1759821805256,0.26475033,123760.0,123750.0,0.16990284]
[1759821805465,0.24972516,123760.0,123750.0,0.16990284]
[1759821806404,0.24972516,123760.0,123750.0,0.16681284]
[1759821807479,0.08812206,123760.0,123750.0,0.16990284]
[1759821808476,0.24972516,123760.0,123750.0,0.16990284]
[1759821809142,0.24972516,123760.0,123750.0,0.16681284]
[1759821810108,0.24972516,123760.0,123750.0,0.16990284]
[1759821812056,0.08812206,123760.0,123750.0,0.16990284]
[1759821812495,0.08812206,123760.0,123750.0,0.16681284]
[1759821812718,0.08812206,123760.0,123750.0,0.16990284]
[1759821812934,0.005,123760.0,123750.0,0.16990284]
[1759821813758,0.005,123760.0,123750.0,0.39910284]
[1759821820950,0.005,123760.0,123750.0,0.39898284]
[1759821822276,0.003,123760.0,123750.0,0.16890284]
[1759821822711,0.16159063,123770.0,123760.0,0.1616031]
[1759821822921,0.08312206,123770.0,123760.0,0.1637331]
[1759821823099,0.08312206,123770.0,123760.0,0.16453363]
[1759821823830,0.08312206,123770.0,123760.0,0.16767363]
[1759821823989,0.2467121,123770.0,123760.0,0.16867363]
[1759821824384,0.2487121,123770.0,123760.0,0.17067363]
[1759821824593,0.2487121,123770.0,123760.0,0.39971363]
[1759821825001,0.08712206,123770.0,123760.0,0.39971363]
[1759821829428,0.2487121,123770.0,123760.0,0.39971363]
[1759821829627,0.2487121,123770.0,123760.0,0.39967363]
[1759821830075,0.08712206,123770.0,123760.0,0.39967363]
[1759821831509,0.2487121,123770.0,123760.0,0.39967363]
[1759821831715,0.08712206,123770.0,123760.0,0.39967363]
[1759821832133,0.2487121,123770.0,123760.0,0.39967363]
[1759821832361,0.2487121,123770.0,123760.0,0.39653363]
[1759821832867,0.08712206,123770.0,123760.0,0.39653363]
[1759821833280,0.08712206,123770.0,123760.0,0.39967363]
[1759821834089,0.08712206,123770.0,123760.0,0.39653363]
[1759821835221,0.08712206,123770.0,123760.0,0.39967363]
[1759821836292,0.2487121,123770.0,123760.0,0.39967363]
[1759821838110,0.2487121,123770.0,123760.0,0.39653363]
[1759821838431,0.08712206,123770.0,123760.0,0.39653363]
[1759821839062,0.08712206,123770.0,123760.0,0.16540363]
[1759821839063,0.2507521,123770.0,123760.0,0.16540363]
[1759821839270,0.2538021,123770.0,123760.0,0.39432363]
[1759821840835,0.2538021,123770.0,123760.0,0.16540363]
[1759821841055,0.2538021,123770.0,123760.0,0.39432363]
[1759821841869,0.2538021,123770.0,123760.0,0.00380053]
[1759821842096,0.3337989,123770.0,123760.0,0.23272053]
[1759821842406,0.3337989,123770.0,123760.0,0.39432363]
[1759821843294,0.08916206,123770.0,123760.0,0.39634363]
[1759821843504,0.08916206,123770.0,123760.0,0.39954363]
[1759821843505,0.004,123770.0,123760.0,0.39954363]
[1759821858959,0.004,123770.0,123760.0,0.76969553]
[1759821859261,0.004,123770.0,123760.0,0.54077553]
[1759821859466,0.004,123770.0,123760.0,0.93365233]
[1759821866159,0.004,123770.0,123760.0,0.62077233]
[1759821866377,0.004,123770.0,123760.0,0.93361233]
[1759821871191,0.004,123770.0,123760.0,1.01673439]
[1759821872297,0.002,123770.0,123760.0,1.11717947]
[1759821872522,0.06536749,123800.0,123790.0,0.16156393]
[1759821872745,0.06536749,123800.0,123790.0,0.47440393]
[1759821873186,0.17315469,123810.0,123800.0,0.16155088]
[1759821873187,0.00053933,123810.0,123800.0,0.16155088]
[1759821873404,0.08574139,123810.0,123800.0,0.16155088]
[1759821873856,0.24727923,123810.0,123800.0,0.16169682]
[1759821874080,0.25027923,123810.0,123800.0,0.16169682]
[1759821874713,0.25427923,123810.0,123800.0,0.16269682]
[1759821876480,0.26127923,123810.0,123800.0,0.17869729]
[1759821876911,0.09674139,123810.0,123800.0,0.17869729]
[1759821877111,0.09986139,123810.0,123800.0,0.17869729]
[1759821877509,0.26139923,123810.0,123800.0,0.17869729]
[1759821878892,0.25619923,123810.0,123800.0,0.18070729]
[1759821880610,0.25830923,123810.0,123800.0,0.17869729]
[1759821880835,0.26142923,123810.0,123800.0,0.17869729]
[1759821881231,0.25830923,123810.0,123800.0,0.17869729]
[1759821881666,0.25806691,123810.0,123800.0,0.17869729]
[1759821881936,0.26118691,123810.0,123800.0,0.40753729]
[1759821884484,0.26118691,123810.0,123800.0,0.46477342]
[1759821885275,0.26118691,123810.0,123800.0,0.40753729]
[1759821886740,0.25806691,123810.0,123800.0,0.40954729]
[1759821887171,0.26118691,123810.0,123800.0,0.40753729]
[1759821888130,0.26118691,123810.0,123800.0,0.40954729]
[1759821888524,0.25806691,123810.0,123800.0,0.40954729]
[1759821889075,0.26118691,123810.0,123800.0,0.40753729]
[1759821889277,0.25806691,123810.0,123800.0,0.40753729]
[1759821889476,0.25595691,123810.0,123800.0,0.40954729]
[1759821890332,0.28231075,123810.0,123800.0,0.40753729]
[1759821890975,0.28543075,123810.0,123800.0,0.40753729]
[1759821891165,0.28231075,123810.0,123800.0,0.40753729]
[1759821891396,0.28231075,123810.0,123800.0,0.40954729]
[1759821891799,0.28543075,123810.0,123800.0,0.40753729]
[1759821892514,0.26118691,123810.0,123800.0,0.40753729]
[1759821899108,0.26118691,123810.0,123800.0,0.17869729]
[1759821899530,0.26118691,123810.0,123800.0,0.40749729]
[1759821902347,0.26118691,123810.0,123800.0,0.17869729]
[1759821902543,0.26118691,123810.0,123800.0,0.40749729]
[1759821906077,0.25595691,123810.0,123800.0,0.40962729]
[1759821906273,0.25595691,123810.0,123800.0,0.46706342]
[1759821906720,0.25595691,123810.0,123800.0,0.40962729]
[1759821907680,0.25800691,123810.0,123800.0,0.40962729]
[1759821908889,0.25595691,123810.0,123800.0,0.40962729]
[1759821909111,0.25800691,123810.0,123800.0,0.40962729]
[1759821909340,0.26100691,123810.0,123800.0,0.40749729]
[1759821911853,0.25595691,123810.0,123800.0,0.40962729]
[1759821912263,0.25800691,123810.0,123800.0,0.40962729]
[1759821913180,0.25595691,123810.0,123800.0,0.40962729]
[1759821913841,0.25800691,123810.0,123800.0,0.40962729]
[1759821914258,0.25595691,123810.0,123800.0,0.40962729]
[1759821915058,0.25800691,123810.0,123800.0,0.40962729]
[1759821916326,0.26100691,123810.0,123800.0,0.40962729]
[1759821917936,0.26100691,123810.0,123800.0,0.40749729]
[1759821921601,0.26100691,123810.0,123800.0,0.40745729]
[1759821925293,0.26100691,123810.0,123800.0,0.16469682]
[1759821925448,0.32856825,123810.0,123800.0,0.00314594]
[1759821925668,0.76457825,123810.0,123800.0,0.00314594]
[1759821925871,1.12882381,123810.0,123800.0,0.00314594]
[1759821926648,1.12482381,123810.0,123800.0,0.00214594]
[1759821927060,1.12182381,123810.0,123800.0,0.00114594]
[1759821927275,1.12182381,123810.0,123800.0,0.00314594]
[1759821927489,1.20482061,123810.0,123800.0,0.00314594]
[1759821927687,1.7159443,123810.0,123800.0,0.00314594]
[1759821927900,0.70880162,123810.0,123800.0,0.00314594]
[1759821928077,1.7159443,123810.0,123800.0,0.00314594]
[1759821928914,1.73103767,123810.0,123800.0,0.00314594]
[1759821929986,1.79073608,123810.0,123800.0,0.00314594]
[1759821930573,2.01945608,123810.0,123800.0,0.00314594]
[1759821931250,1.93945928,123810.0,123800.0,0.00314594]
[1759821931677,2.03945928,123810.0,123800.0,0.00314594]
[1759821933469,1.93945928,123810.0,123800.0,0.00314594]
[1759821933681,2.03945928,123810.0,123800.0,0.00314594]
[1759821934489,1.93945928,123810.0,123800.0,0.00314594]
[1759821934740,1.92436591,123810.0,123800.0,0.00314594]
[1759821935044,2.01942879,123810.0,123800.0,0.00314594]
[1759821937339,2.04955316,123810.0,123800.0,0.00314594]
[1759821939949,2.04959316,123810.0,123800.0,0.00314594]
[1759821940148,2.13355316,123810.0,123800.0,0.00314594]
[1759821941023,1.82083316,123810.0,123800.0,0.00314594]
[1759821941209,2.13355316,123810.0,123800.0,0.00314594]
[1759821942665,2.1335464,123810.0,123800.0,0.00314594]
[1759821944894,0.81368372,123810.0,123800.0,0.00314594]
[1759821945109,2.1335464,123810.0,123800.0,0.00314594]
[1759821945319,2.0535496,123810.0,123800.0,0.00314594]
[1759821946059,1.9695896,123810.0,123800.0,0.00314594]
[1759821946272,2.0535496,123810.0,123800.0,0.00314594]
[1759821947079,2.05416772,123810.0,123800.0,0.00314594]
[1759821947452,2.13416452,123810.0,123800.0,0.00314594]
[1759821953293,2.05416772,123810.0,123800.0,0.00314594]
[1759821953835,2.05416772,123810.0,123800.0,0.00526594]
[1759821953836,0.73068692,123810.0,123800.0,0.00526594]
[1759821954062,1.55043732,123810.0,123800.0,0.00314594]
[1759821954590,2.05431772,123810.0,123800.0,0.00314594]
[1759821954999,2.05433045,123810.0,123800.0,0.00314594]
[1759821955222,2.13432725,123810.0,123800.0,0.00314594]
[1759821956162,1.63044685,123810.0,123800.0,0.00314594]
[1759821956967,1.55045005,123810.0,123800.0,0.00314594]
[1759821957608,1.23777005,123810.0,123800.0,0.00314594]
[1759821957806,1.55045005,123810.0,123800.0,0.00314594]
[1759821958012,1.23777005,123810.0,123800.0,0.00314594]
[1759821958215,1.55045005,123810.0,123800.0,0.00314594]
[1759821959333,1.5502187,123810.0,123800.0,0.00314594]
[1759821961489,2.05416667,123810.0,123800.0,0.00314594]
[1759821962347,1.55028627,123810.0,123800.0,0.00314594]
[1759821962979,1.52013437,123810.0,123800.0,0.00314594]
[1759821965110,2.02401477,123810.0,123800.0,0.00314594]
[1759821965321,2.10401157,123810.0,123800.0,0.00314594]
[1759821968203,2.10403009,123810.0,123800.0,0.00314594]
[1759821968991,2.10402981,123810.0,123800.0,0.00314594]
[1759821972242,2.02403301,123810.0,123800.0,0.00314594]
[1759821979919,2.05418491,123810.0,123800.0,0.00314594]
[1759821981501,2.03730697,123810.0,123800.0,0.00314594]
[1759821985862,1.95326697,123810.0,123800.0,0.00314594]
[1759821986060,2.03722697,123810.0,123800.0,0.00314594]
[1759821986404,1.95326697,123810.0,123800.0,0.00314594]
[1759821986608,2.03722697,123810.0,123800.0,0.00314594]
[1759821989121,0.76352107,123810.0,123800.0,0.00511594]
[1759821989324,1.50000467,123810.0,123800.0,0.00511594]
[1759821989518,1.50308467,123810.0,123800.0,0.00314594]
[1759821990039,1.19048467,123810.0,123800.0,0.00314594]
[1759821990227,1.50308467,123810.0,123800.0,0.00314594]
[1759821993643,2.00696507,123810.0,123800.0,0.00314594]
[1759821994642,2.08696187,123810.0,123800.0,0.00314594]
[1759821995471,2.00696507,123810.0,123800.0,0.00314594]
[1759822006974,2.00696612,123810.0,123800.0,0.00314594]
[1759822009146,2.00688612,123810.0,123800.0,0.00314594]
[1759822010883,1.50296572,123810.0,123800.0,0.00314594]
[1759822011778,1.19044572,123810.0,123800.0,0.00314594]
[1759822012016,0.62177691,123810.0,123800.0,0.00816594]
[1759822012218,0.85033691,123810.0,123800.0,0.00816594]
[1759822012393,0.62177691,123810.0,123800.0,0.00816594]
[1759822012594,0.85033691,123810.0,123800.0,0.00816594]
[1759822013197,1.35417731,123810.0,123800.0,0.00816594]
[1759822013805,0.62177691,123810.0,123800.0,0.00816594]
[1759822013995,0.85033691,123810.0,123800.0,0.00816594]
[1759822014627,0.85034273,123810.0,123800.0,0.00816594]
[1759822017796,0.83521442,123810.0,123800.0,0.00816594]
[1759822021228,1.34407482,123810.0,123800.0,0.00522594]
[1759822022074,1.34108482,123810.0,123800.0,0.00522594]
[1759822022417,1.34407482,123810.0,123800.0,0.00314594]
[1759822023214,0.61167442,123810.0,123800.0,0.00314594]
[1759822023369,1.34403482,123810.0,123800.0,0.00314594]
[1759822029346,1.34403065,123810.0,123800.0,0.00314594]
[1759822038926,1.42402745,123810.0,123800.0,0.00314594]
[1759822039644,1.34403065,123810.0,123800.0,0.00314594]
[1759822040578,1.8931485,123810.0,123800.0,0.00314594]
[1759822041208,2.3369485,123810.0,123800.0,0.00314594]
[1759822042297,2.3339485,123810.0,123800.0,0.00114594]
[1759822042476,2.4489453,123810.0,123800.0,0.00514594]
[1759822043074,2.4449453,123810.0,123800.0,0.00414594]
[1759822043276,2.4099453,123810.0,123800.0,0.00014594]
[1759822043480,2.4629453,123810.0,123800.0,0.00414594]
[1759822043972,2.4449453,123810.0,123800.0,0.00414594]
[1759822044207,2.4629453,123810.0,123800.0,0.00414594]
[1759822044860,2.5234917,123810.0,123800.0,0.00414594]
[1759822045530,2.2149749,123810.0,123800.0,0.00414594]
[1759822045810,2.5273749,123810.0,123800.0,0.00414594]
[1759822049286,1.5196941,123810.0,123800.0,0.00414594]
[1759822049504,2.5273749,123810.0,123800.0,0.00414594]
[1759822051056,2.5353749,123810.0,123800.0,0.00414594]
[1759822052722,1.5276941,123810.0,123800.0,0.00414594]
[1759822053070,0.8752941,123810.0,123800.0,0.00414594]
[1759822053307,2.5353749,123810.0,123800.0,0.00414594]
[1759822053762,2.0315345,123810.0,123800.0,0.00414594]
[1759822054775,2.03152591,123810.0,123800.0,0.00414594]
[1759822055411,1.34800721,123810.0,123800.0,0.00612594]
[1759822055618,1.85184761,123810.0,123800.0,0.00612594]
[1759822055814,1.85386761,123810.0,123800.0,0.00612594]
[1759822056034,1.85679761,123810.0,123800.0,0.00414594]
[1759822057313,1.85679761,123810.0,123800.0,0.00934594]
[1759822057314,0.33576721,123810.0,123800.0,0.00934594]
[1759822057513,0.33576721,123810.0,123800.0,0.02645689]
[1759822057514,0.30509318,123810.0,123800.0,0.02645689]
[1759822057692,0.87353318,123810.0,123800.0,0.00934594]
[1759822057897,0.53353318,123810.0,123800.0,0.00934594]
[1759822058423,0.83853318,123810.0,123800.0,0.00534594]
[1759822058625,0.84253318,123810.0,123800.0,0.00734594]
[1759822058826,0.82453318,123810.0,123800.0,0.00734594]
[1759822058950,0.82853318,123810.0,123800.0,0.00834594]
[1759822059589,0.82853318,123810.0,123800.0,0.02535689]
[1759822060009,0.82853318,123810.0,123800.0,0.00834594]
[1759822063165,0.82853318,123810.0,123800.0,0.16989682]
[1759822063577,0.60009318,123810.0,123800.0,0.16989682]
[1759822064373,0.23584762,123810.0,123800.0,0.18108832]
[1759822065454,0.23584762,123810.0,123800.0,0.1952294]
[1759822066295,0.23584762,123810.0,123800.0,0.18108832]
[1759822072743,0.23584762,123810.0,123800.0,0.01953744]
[1759822072945,0.23584762,123810.0,123800.0,0.18108832]
[1759822075992,0.23584762,123810.0,123800.0,0.40944832]
[1759822076197,0.23584762,123810.0,123800.0,0.01953744]